fUSD/lending_fUSD_20240508
["ID","MTS","AMOUNT","RATE_DAILY","PERIOD"]
[326658621,1715203854049,-1312.6,0.00027945,5]
[326658622,1715203854058,-3208.75,0.00027945,5]
[326658623,1715203854068,-168.94,0.00027945,5]
[326658624,1715203854078,-499.99,0.00027945,5]
[326658625,1715203854099,-843.33,0.00027945,5]
[326658626,1715203854113,-500.0,0.00027945,5]
[326658627,1715203854123,-500.0,0.00027945,5]
[326658628,1715203854132,-500.0,0.00027945,5]
[326658629,1715203854142,-500.0,0.00027945,5]
[326658630,1715203854151,-1662.41,0.00027945,5]
[326658631,1715203854160,-720.14,0.00027945,5]
[326658632,1715203854170,-500.0,0.00027945,5]
[326658633,1715203854179,-152.11683317,0.00028036,2]
[326658634,1715203854189,-604.0,0.00028112,7]
[326658635,1715203854198,-150.0,0.00028118,2]
[326658636,1715203854208,-165.13605642,0.00028208,3]
[326658637,1715203854217,-154.01043549,0.00028218,2]
[326658638,1715203854226,-472.43175949,0.00028236,2]
[326658639,1715203854236,-153.70873278,0.00028311,2]
[326658640,1715203854245,-156.58273663,0.00028375,2]
[326658641,1715203854255,-969.0,0.000284,12]
[326658642,1715203854264,-686.83182,0.000284,2]
[326658643,1715203854274,-150.0,0.000284,5]
[326658644,1715203854283,-153.70873278,0.00028435,2]
[326658645,1715203854299,-152.19,0.00028438,15]
[326658646,1715203854309,-157.050906,0.00028448,18]
[326658647,1715203854319,-156.58273663,0.00028448,2]
[326658648,1715203854329,-500.0,0.00028492,5]
[326658649,1715203854338,-500.0,0.00028492,5]
[326658650,1715203854347,-1520.98,0.00028492,5]
[326658651,1715203854357,-500.0,0.00028492,5]
[326658652,1715203854366,-500.0,0.00028492,5]
[326658653,1715203854375,-500.0,0.00028492,5]
[326658654,1715203854384,-246.17,0.00028492,5]
[326658655,1715203854393,-500.0,0.00028492,5]
[326658656,1715203854403,-500.0,0.00028492,5]
[326658657,1715203854413,-500.0,0.00028492,5]
[326658658,1715203854422,-242.12,0.00028492,5]
[326658659,1715203854431,-500.0,0.00028492,5]
[326658660,1715203854441,-500.0,0.00028492,5]
[326658661,1715203854450,-500.0,0.00028492,5]
[326658662,1715203854459,-206.83,0.00028492,5]
[326658663,1715203854468,-500.0,0.00028492,5]
[326658664,1715203854478,-500.0,0.00028492,5]
[326658665,1715203854487,-321.73,0.00028492,5]
[326658666,1715203854497,-319.48,0.00028492,5]
[326658667,1715203854506,-500.0,0.00028492,5]
[326658668,1715203854516,-324.3,0.00028492,5]
[326658669,1715203854525,-175.95,0.00028492,5]
[326658670,1715203854535,-500.0,0.00028492,5]
[326658671,1715203854544,-500.0,0.00028492,5]
[326658672,1715203854553,-500.0,0.00028492,5]
[326658673,1715203854562,-164.69,0.00028492,5]
[326658674,1715203854571,-500.0,0.00028492,5]
[326658675,1715203854581,-500.0,0.00028492,5]
[326658676,1715203854590,-500.0,0.00028492,5]
[326658677,1715203854599,-509.46,0.00028492,5]
[326658678,1715203854608,-378.8,0.00028492,5]
[326658679,1715203854617,-343.84,0.00028492,5]
[326658680,1715203854627,-320.28,0.00028492,5]
[326658681,1715203854637,-500.0,0.00028492,5]
[326658682,1715203854646,-500.0,0.00028492,5]
[326658683,1715203854655,-500.0,0.00028492,5]
[326658684,1715203854664,-500.0,0.00028492,5]
[326658685,1715203854674,-500.0,0.00028492,5]
[326658686,1715203854683,-500.0,0.00028492,5]
[326658687,1715203854692,-474.15390972,0.00028492,5]
[326658688,1715203854702,-241.7,0.00028492,5]
[326658689,1715203854711,-500.0,0.00028492,5]
[326658690,1715203854720,-530.87,0.00028492,5]
[326658691,1715203854730,-500.0,0.00028492,5]
[326658692,1715203854743,-360.03,0.00028492,5]
[326658693,1715203854754,-328.95,0.00028492,5]
[326658694,1715203854766,-661.85,0.00028492,5]
[326658695,1715203854780,-500.0,0.00028492,5]
[326658696,1715203854790,-161.5,0.00028492,5]
[326658697,1715203854802,-500.0,0.00028492,5]
[326658698,1715203854812,-239.87,0.00028492,5]
[326658699,1715203854823,-435.38,0.00028492,5]
[326658700,1715203854835,-500.0,0.00028492,5]
[326658701,1715203854844,-500.0,0.00028492,5]
[326658702,1715203854857,-500.0,0.00028492,5]
[326658703,1715203854867,-500.0,0.00028492,5]
[326658704,1715203854877,-500.0,0.00028492,5]
[326658705,1715203854886,-319.96,0.00028492,5]
[326658706,1715203854896,-259.33,0.00028492,5]
[326658707,1715203854906,-500.0,0.00028492,5]
[326658708,1715203854915,-500.0,0.00028492,5]
[326658709,1715203854925,-415.17,0.00028492,5]
[326658710,1715203854934,-500.0,0.00028492,5]
[326658711,1715203854944,-500.0,0.00028492,5]
[326658712,1715203854954,-500.0,0.00028492,5]
[326658713,1715203854963,-500.0,0.00028492,5]
[326658714,1715203854973,-500.0,0.00028492,5]
[326658715,1715203854982,-500.0,0.00028492,5]
[326658716,1715203854993,-532.95,0.00028492,5]
[326658717,1715203855003,-500.0,0.00028492,5]
[326658718,1715203855013,-500.0,0.00028492,5]
[326658719,1715203855022,-500.0,0.00028492,5]
[326658720,1715203855032,-500.0,0.00028492,5]
[326658721,1715203855042,-495.61202471,0.00028492,5]
[326658722,1715203855052,-372.88,0.00028492,5]
[326658723,1715203855061,-1178.46,0.00028492,5]
[326658724,1715203855071,-500.0,0.00028492,5]
[326658725,1715203855081,-573.74,0.00028492,5]
[326658726,1715203855090,-500.0,0.00028492,5]
[326658727,1715203855100,-500.0,0.00028492,5]
[326658728,1715203855110,-500.0,0.00028492,5]
[326658729,1715203855120,-500.0,0.00028492,5]
[326658730,1715203855129,-1126.9,0.00028492,5]
[326658731,1715203855139,-13154.98,0.00028492,5]
[326658732,1715203855148,-977.82,0.00028492,5]
[326658733,1715203855157,-1522.79,0.00028492,5]
[326658734,1715203855167,-500.0,0.00028492,5]
[326658735,1715203855177,-500.0,0.00028492,5]
[326658736,1715203855188,-500.0,0.00028492,5]
[326658737,1715203855198,-500.0,0.00028492,5]
[326658738,1715203855207,-908.39,0.00028492,5]
[326658739,1715203855217,-500.0,0.00028492,5]
[326658740,1715203855227,-500.0,0.00028492,5]
[326658741,1715203855236,-277.9,0.00028492,5]
[326658742,1715203855246,-500.0,0.00028492,5]
[326658743,1715203855256,-441.45,0.00028492,5]
[326658744,1715203855266,-3586.66,0.00028492,5]
[326658745,1715203855276,-500.0,0.00028492,5]
[326658746,1715203855286,-500.82,0.00028492,5]
[326658747,1715203855295,-500.0,0.00028492,5]
[326658748,1715203855305,-500.0,0.00028492,5]
[326658749,1715203855315,-500.0,0.00028492,5]
[326658750,1715203855325,-500.0,0.00028492,5]
[326658751,1715203855335,-500.0,0.00028492,5]
[326658752,1715203855344,-802.34,0.00028492,5]
[326658753,1715203855399,-508.18,0.00028492,5]
[326658754,1715203855409,-500.0,0.00028492,5]
[326658755,1715203855419,-500.0,0.00028492,5]
[326658756,1715203855429,-240.94,0.00028492,5]
[326658757,1715203855440,-500.0,0.00028492,5]
[326658758,1715203855450,-818.42,0.00028492,5]
[326658759,1715203855460,-500.0,0.00028492,5]
[326658760,1715203855471,-500.0,0.00028492,5]
[326658761,1715203855480,-500.0,0.00028492,5]
[326658762,1715203855490,-422.94,0.00028492,5]
[326658763,1715203855500,-500.0,0.00028492,5]
[326658764,1715203855509,-500.0,0.00028492,5]
[326658765,1715203855519,-500.0,0.00028492,5]
[326658766,1715203855529,-695.26,0.00028492,5]
[326658767,1715203855538,-500.0,0.00028492,5]
[326658768,1715203855549,-500.0,0.00028492,5]
[326658769,1715203855559,-167.62462793,0.00028493,2]
[326658770,1715203855569,-500.0,0.00028493,5]
[326658771,1715203855579,-255.25,0.00028493,5]
[326658772,1715203855588,-500.0,0.00028493,5]
[326658773,1715203855598,-500.0,0.00028493,5]
[326658774,1715203855608,-317.86,0.00028493,5]
[326658775,1715203855617,-2365.2,0.00028493,5]
[326658776,1715203855626,-190.62,0.00028493,5]
[326658777,1715203855636,-500.0,0.00028493,5]
[326658778,1715203855646,-516.16,0.00028493,5]
[326658779,1715203855655,-500.0,0.00028493,5]
[326658780,1715203855665,-1865.0,0.00028493,5]
[326658781,1715203855674,-500.0,0.00028493,5]
[326658782,1715203855684,-500.0,0.00028493,5]
[326658783,1715203855694,-500.0,0.00028493,5]
[326658784,1715203855704,-1541.25,0.00028493,5]
[326658785,1715203855713,-500.0,0.00028493,5]
[326658786,1715203855723,-3187.9,0.00028493,5]
[326658787,1715203855733,-500.0,0.00028493,5]
[326658788,1715203855743,-500.0,0.00028493,5]
[326658789,1715203855752,-196.32,0.00028493,5]
[326658790,1715203855764,-500.0,0.00028493,5]
[326658791,1715203855775,-500.0,0.00028493,5]
[326658792,1715203855786,-551.56,0.00028493,5]
[326658793,1715203855795,-500.0,0.00028493,5]
[326658794,1715203855805,-500.0,0.00028493,5]
[326658795,1715203855815,-500.0,0.00028493,5]
[326658796,1715203855824,-500.0,0.00028493,5]
[326658797,1715203855833,-206.29957428,0.00028493,5]
[326658798,1715203855843,-500.0,0.00028493,5]
[326658799,1715203855852,-500.0,0.00028493,5]
[326658800,1715203855864,-500.0,0.00028493,5]
[326658801,1715203855874,-500.0,0.00028493,5]
[326658802,1715203855885,-500.0,0.00028493,5]
[326658803,1715203855910,-1292.76,0.00028493,5]
[326658804,1715203855919,-500.0,0.00028493,5]
[326658805,1715203855928,-500.0,0.00028493,2]
[326658806,1715203855937,-309.71,0.00028493,5]
[326658807,1715203855946,-500.0,0.00028493,5]
[326658808,1715203855957,-500.0,0.00028493,5]
[326658809,1715203855966,-500.0,0.00028493,5]
[326658810,1715203855975,-806.81,0.00028493,5]
[326658811,1715203855985,-1631.76,0.00028493,5]
[326658812,1715203855994,-500.0,0.00028493,5]
[326658813,1715203856004,-445.59,0.00028493,5]
[326658814,1715203856014,-500.0,0.00028493,5]
[326658815,1715203856023,-500.0,0.00028493,5]
[326658816,1715203856034,-500.0,0.00028493,5]
[326658817,1715203856043,-500.0,0.00028493,5]
[326658818,1715203856053,-500.0,0.00028493,5]
[326658819,1715203856063,-1520.86,0.00028493,5]
[326658820,1715203856072,-500.0,0.00028493,5]
[326658821,1715203856082,-1381.31,0.00028493,5]
[326658822,1715203856091,-500.0,0.00028493,5]
[326658823,1715203856100,-500.0,0.00028493,5]
[326658824,1715203856110,-500.0,0.00028493,5]
[326658825,1715203856120,-500.0,0.00028493,5]
[326658826,1715203856129,-1761.26,0.00028493,5]
[326658827,1715203856138,-160.32,0.00028493,5]
[326658828,1715203856148,-500.0,0.00028493,5]
[326658829,1715203856158,-806.21,0.00028493,5]
[326658830,1715203856167,-1415.55,0.00028493,5]
[326658831,1715203856177,-1652.92,0.00028493,5]
[326658832,1715203856186,-500.0,0.00028493,5]
[326658833,1715203856196,-868.67,0.00028493,5]
[326658834,1715203856205,-1336.54,0.00028493,5]
[326658835,1715203856214,-308.74,0.00028493,5]
[326658836,1715203856224,-500.0,0.00028493,5]
[326658837,1715203856233,-500.0,0.00028493,5]
[326658838,1715203856242,-500.0,0.00028493,5]
[326658839,1715203856252,-500.0,0.00028493,5]
[326658840,1715203856263,-500.0,0.00028493,5]
[326658841,1715203856272,-500.0,0.00028493,5]
[326658842,1715203856282,-500.0,0.00028493,5]
[326658843,1715203856292,-500.0,0.00028493,5]
[326658844,1715203856302,-500.0,0.00028493,5]
[326658845,1715203856312,-500.0,0.00028493,5]
[326658846,1715203856321,-500.0,0.00028493,5]
[326658847,1715203856331,-500.0,0.00028493,5]
[326658848,1715203856340,-500.0,0.00028493,5]
[326658849,1715203856349,-611.92,0.00028493,5]
[326658850,1715203856359,-500.0,0.00028493,5]
[326658851,1715203856368,-500.0,0.00028493,5]
[326658852,1715203856377,-500.0,0.00028493,5]
[326658853,1715203856388,-500.0,0.00028493,5]
[326658854,1715203856397,-500.0,0.00028493,5]
[326658855,1715203856407,-500.0,0.00028493,5]
[326658856,1715203856415,-1060.31,0.00028493,5]
[326658857,1715203856425,-150.0,0.00028493,5]
[326658858,1715203856434,-500.0,0.00028493,5]
[326658859,1715203856444,-500.0,0.00028493,5]
[326658861,1715203856453,-1982.77,0.00028493,5]
[326658862,1715203856462,-500.0,0.00028493,5]
[326658863,1715203856472,-500.0,0.00028493,5]
[326658864,1715203856482,-198.11,0.00028493,5]
[326658866,1715203856492,-500.0,0.00028493,5]
[326658867,1715203856501,-500.0,0.00028493,5]
[326658868,1715203856512,-500.0,0.00028493,5]
[326658869,1715203856521,-585.32,0.00028493,5]
[326658870,1715203856531,-500.0,0.00028493,5]
[326658871,1715203856540,-500.0,0.00028493,5]
[326658872,1715203856549,-376.44,0.00028493,5]
[326658873,1715203856558,-500.0,0.00028493,5]
[326658874,1715203856567,-193.91248997,0.00028493,5]
[326658875,1715203856576,-500.0,0.00028493,5]
[326658876,1715203856587,-500.0,0.00028493,5]
[326658877,1715203856596,-500.0,0.00028493,5]
[326658878,1715203856605,-1042.65,0.00028493,5]
[326658879,1715203856614,-500.0,0.00028493,5]
[326658880,1715203856624,-500.0,0.00028493,5]
[326658881,1715203856633,-2968.4,0.00028493,5]
[326658882,1715203856643,-500.0,0.00028493,5]
[326658883,1715203856652,-500.0,0.00028493,5]
[326658884,1715203856661,-2457.45,0.00028493,5]
[326658885,1715203856672,-786.56,0.00028493,5]
[326658886,1715203856681,-500.0,0.00028493,5]
[326658887,1715203856690,-500.0,0.00028493,5]
[326658888,1715203856700,-686.85,0.00028493,5]
[326658889,1715203856709,-500.0,0.00028493,5]
[326658890,1715203856719,-270.75,0.00028493,5]
[326658891,1715203856729,-500.0,0.00028493,5]
[326658892,1715203856738,-500.0,0.00028493,5]
[326658893,1715203856748,-508.25,0.00028493,5]
[326658894,1715203856759,-500.0,0.00028493,5]
[326658895,1715203856768,-548.38,0.00028493,5]
[326658896,1715203856782,-500.0,0.00028493,5]
[326658897,1715203856792,-710.7,0.00028493,5]
[326658898,1715203856804,-500.0,0.00028493,5]
[326658899,1715203856813,-349.43,0.00028493,5]
[326658900,1715203856823,-500.0,0.00028493,5]
[326658901,1715203856833,-2091.76,0.00028493,5]
[326658902,1715203856843,-500.0,0.00028493,5]
[326658903,1715203856853,-500.0,0.00028493,5]
[326658904,1715203856863,-709.87,0.00028493,5]
[326658905,1715203856873,-500.0,0.00028493,5]
[326658906,1715203856882,-500.0,0.00028493,5]
[326658907,1715203856892,-500.0,0.00028493,5]
[326658908,1715203856901,-500.0,0.00028493,5]
[326658909,1715203856910,-500.0,0.00028493,5]
[326658910,1715203856919,-500.0,0.00028493,5]
[326658911,1715203856929,-1883.5,0.00028493,5]
[326658912,1715203856938,-1413.54,0.00028493,5]
[326658913,1715203856947,-500.0,0.00028493,5]
[326658914,1715203856955,-623.99,0.00028493,5]
[326658915,1715203856964,-8200.76,0.00028493,5]
[326658916,1715203856975,-628.08,0.00028493,5]
[326658917,1715203856984,-500.0,0.00028493,5]
[326658918,1715203856993,-500.0,0.00028493,5]
[326658919,1715203857003,-511.64,0.00028493,5]
[326658920,1715203857013,-500.0,0.00028493,5]
[326658921,1715203857022,-500.0,0.00028493,5]
[326658922,1715203857031,-500.0,0.00028493,5]
[326658923,1715203857040,-500.0,0.00028493,5]
[326658924,1715203857049,-500.0,0.00028493,5]
[326658925,1715203857059,-500.0,0.00028493,5]
[326658926,1715203857068,-500.0,0.00028493,5]
[326658927,1715203857078,-500.0,0.00028493,5]
[326658928,1715203857087,-167.02939515,0.00028493,5]
[326658929,1715203857096,-500.0,0.00028493,5]
[326658930,1715203857106,-868.11,0.00028493,5]
[326658931,1715203857114,-537.89,0.00028493,5]
[326658932,1715203857124,-500.0,0.00028493,5]
[326658933,1715203857133,-500.0,0.00028493,5]
[326658934,1715203857142,-906.89,0.00028493,5]
[326658935,1715203857151,-500.0,0.00028493,5]
[326658936,1715203857160,-6763.43584078,0.00028493,5]
[326658937,1715203857179,-422.07415922,0.00028493,5]
[326658938,1715203857188,-500.0,0.00028493,5]
[326658939,1715203857197,-500.0,0.00028493,5]
[326658940,1715203857206,-500.0,0.00028493,5]
[326658941,1715203857215,-500.0,0.00028493,5]
[326658942,1715203857224,-500.0,0.00028493,5]
[326658943,1715203857233,-1654.0,0.00028493,5]
[326658944,1715203857242,-504.38296247,0.00028493,5]
[326658945,1715203857253,-763.57703753,0.00028493,5]
[326658946,1715203857265,-533.64,0.00028493,5]
[326658947,1715203857274,-847.41,0.00028493,5]
[326658948,1715203857283,-500.0,0.00028493,5]
[326658949,1715203857294,-500.0,0.00028493,5]
[326658950,1715203857303,-500.0,0.00028493,5]
[326658951,1715203857312,-500.0,0.00028493,5]
[326658952,1715203857322,-580.07,0.00028493,5]
[326658953,1715203857331,-1494.66,0.00028493,5]
[326658954,1715203857340,-500.0,0.00028493,5]
[326658955,1715203857350,-580.72,0.00028493,5]
[326658956,1715203857359,-500.0,0.00028493,5]
[326658957,1715203857369,-3137.64,0.00028493,5]
[326658958,1715203857378,-500.0,0.00028493,5]
[326658959,1715203857387,-500.0,0.00028493,5]
[326658960,1715203857397,-500.0,0.00028493,5]
[326658961,1715203857407,-500.0,0.00028493,5]
[326658962,1715203857417,-1438.29,0.00028493,5]
[326658963,1715203857426,-500.0,0.00028493,5]
[326658964,1715203857435,-566.98,0.00028493,5]
[326658965,1715203857445,-500.0,0.00028493,5]
[326658966,1715203857454,-500.0,0.00028493,5]
[326658967,1715203857465,-500.0,0.00028493,5]
[326658968,1715203857474,-384.9873913,0.00028493,5]
[326658977,1715203862331,-815.26017648,0.00022636,2]
[326658980,1715203862343,-1684.73982352,0.00022636,2]
[326658982,1715203862352,-346.68838289,0.00023332,2]
[326658983,1715203862363,-1588.31161711,0.00023332,2]
[326658985,1715203862372,-342.08901426,0.0002479,2]
[326658987,1715203862382,-621.14,0.00027397,2]
[326658988,1715203862391,-363.8576107,0.00027944,2]
[326658990,1715203862401,-100.95794085,0.00027944,2]
[326658993,1715203862413,-379.986,0.00027944,2]
[326659226,1715204550563,189.96,0.00024695,120]
[326659227,1715204599652,-363.8576107,0.00010995,2]
[326659228,1715204600911,-155.0,0.00010996,2]
[326659229,1715204601168,-363.8576107,0.00011,2]
[326659230,1715204601447,-155.0,0.00011,2]
[326659231,1715204601563,-827.6627784,0.00011,2]
[326659232,1715204601573,-134.6220002,0.00012998,2]
[326659233,1715204675252,-1481.1423893,0.00012997,2]
[326659234,1715204721413,-150.0,0.00012959,2]
[326659235,1715204722476,-833.30799425,0.00012997,2]
[326659236,1715204722849,-33.3840115,0.00012998,2]
[326659237,1715204736183,-368.56329123,0.00012998,2]
[326659238,1715204737134,-156.36648287,0.00012998,2]
[326659239,1715204738366,-202.6957173,0.00012998,2]
[326659240,1715204739156,-135.5300067,0.00012998,2]
[326659241,1715204740760,-273.6890038,0.00012998,2]
[326659245,1715205054198,-1270.93207056,0.00012899,2]
[326659249,1715205054207,-150.0,0.00012899,2]
[326659253,1715205054219,-3134.0634543,0.000129,2]
[326659257,1715205054230,-331.37048682,0.000129,2]
[326659261,1715205054239,-2349.75505978,0.000129,2]
[326659265,1715205054248,-1252.26775436,0.000129,2]
[326659268,1715205054258,-184.18194573,0.000129,2]
[326659269,1715205054268,-201.36673113,0.000129,2]
[326659272,1715205054278,-415.56363494,0.000129,2]
[326659274,1715205054287,-328.95065636,0.00012996,2]
[326659276,1715205054297,-646.49558005,0.00012996,2]
[326659278,1715205054306,-1198.4432276,0.00012996,2]
[326659279,1715205054315,-2184.78477533,0.00012997,2]
[326659281,1715205054324,-726.011872,0.00012998,2]
[326659282,1715205054336,-7928.68303978,0.00012998,2]
[326659283,1715205054352,-301.90641716,0.00012998,2]
[326659284,1715205054366,-1065.89805705,0.00012998,2]
[326659285,1715205054378,-308.775,0.00012998,2]
[326659286,1715205054389,-2084.81,0.00012998,2]
[326659287,1715205054400,-36082.16991157,0.00012998,2]
[326659295,1715205058476,-2386.86887887,0.00012998,2]
[326659303,1715205058489,-4272.15818022,0.00012998,2]
[326659309,1715205058505,-958.14681319,0.00012998,2]
[326659316,1715205058517,-727.3743122,0.00012998,2]
[326659323,1715205058529,-384.2290936,0.00012998,2]
[326659329,1715205058541,-2275.5900516,0.00012998,2]
[326659334,1715205058553,-520.089,0.00012998,2]
[326659340,1715205058565,-491.306112,0.00012998,2]
[326659344,1715205058577,-333.81892786,0.00012998,2]
[326659347,1715205058589,-4874.94914716,0.00012998,2]
[326659351,1715205058601,-560.95411833,0.00012998,2]
[326659357,1715205058614,-335.39622056,0.00012998,2]
[326659360,1715205058626,-278818.83458463,0.00012998,2]
[326659363,1715205058636,-409.2190105,0.00012998,2]
[326659366,1715205058646,-155.0,0.00012999,2]
[326659369,1715205058656,-2014.75245949,0.00012999,2]
[326659372,1715205058666,-58409.30196862,0.00012999,2]
[326659376,1715205058676,-354451.37622883,0.00013,2]
[326659379,1715205058688,-345147.26730982,0.00013,2]
[326659382,1715205058700,-404323.93429705,0.00013,2]
[326659386,1715205058711,-343.73278263,0.00013,2]
[326659390,1715205058723,-1165.6,0.00013,2]
[326659393,1715205058735,-302.5936972,0.00013,2]
[326659396,1715205058748,-497.89032569,0.00013,2]
[326659400,1715205058759,-2719.79495747,0.00013,2]
[326659403,1715205058771,-269.4426334,0.00013,2]
[326659405,1715205058783,-2438.38607105,0.00013,2]
[326659407,1715205058796,-2191.8796206,0.00013,2]
[326659409,1715205058808,-1513.29975213,0.00013,2]
[326659413,1715205058819,-351.94684962,0.00013,2]
[326659415,1715205058831,-4881.06488202,0.00013,2]
[326659418,1715205058843,-130707.6740412,0.00013,2]
[326659421,1715205058855,-100719.59021814,0.00013,2]
[326659424,1715205058866,-687.549999,0.00013,2]
[326659428,1715205058878,-71305.85094266,0.00013,2]
[326659432,1715205058890,-973.85945036,0.00013,2]
[326659445,1715205058950,-22073.21387535,0.00013,2]
[326659448,1715205058961,-5878.4156058,0.00013,2]
[326659452,1715205058974,-5815.85887887,0.00013,2]
[326659455,1715205058986,-2186.37961417,0.00013,2]
[326659458,1715205058998,-33431.46932347,0.00013,2]
[326659460,1715205059010,-2467.46,0.00013,2]
[326659463,1715205059022,-731.4392052,0.00013,2]
[326659578,1715206197922,-976.64382792,0.00012725,2]
[326659579,1715206201014,-155.0,0.00012726,2]
[326659580,1715206202510,-150.0,0.00012727,2]
[326659581,1715206202543,-153.77612289,0.00012797,2]
[326659582,1715206202571,-1710.03868352,0.00012828,2]
[326659583,1715206202598,-153.77612288,0.00012849,2]
[326659584,1715206202626,-1012.1819,0.00012897,2]
[326659585,1715206202656,-150.0,0.00012899,2]
[326659586,1715206202685,-368.36389142,0.000129,2]
[326659587,1715206202713,-1566.50337318,0.000129,2]
[326659588,1715206202742,-152.44421668,0.000129,2]
[326659589,1715206202771,-153.77612288,0.000129,2]
[326659590,1715206202799,-166.14,0.0001299,2]
[326659591,1715206202830,-166.14,0.0001299,2]
[326659592,1715206202858,-258.47419654,0.00012997,2]
[326659593,1715206202886,-466.38128272,0.00012997,2]
[326659594,1715206202915,-310.64186882,0.00012997,2]
[326659595,1715206202943,-163.89953157,0.00012997,2]
[326659596,1715206202973,-327.74808658,0.00012997,2]
[326659597,1715206203001,-200.71917535,0.00012998,2]
[326659598,1715206203031,-198.3847333,0.00012998,2]
[326659599,1715206203062,-160.47556122,0.00012998,2]
[326659600,1715206203092,-150.99,0.00012998,2]
[326659601,1715206203122,-150.99,0.00012998,2]
[326659602,1715206203152,-337.49,0.00012998,2]
[326659603,1715206203183,-155.0,0.00012999,2]
[326659604,1715206203215,-22184.02130253,0.00012999,2]
[326659607,1715206236761,-304.34121688,0.000129,2]
[326659614,1715206236773,-27.02926991,0.000129,2]
[326659617,1715206236783,-363.61818059,0.000129,2]
[326659621,1715206236793,-463.51743064,0.00012999,2]
[326659624,1715206236805,-464.47486671,0.00012999,2]
[326659627,1715206236816,-1132.38722525,0.00012999,2]
[326659629,1715206236828,-920.5160698,0.00012999,2]
[326659630,1715206236840,-55310.11213868,0.00012999,2]
[326659631,1715206236853,-10076.94638976,0.00012999,2]
[326659632,1715206236865,-1381.95190557,0.00012999,2]
[326659633,1715206236876,-1016.27333657,0.00012999,2]
[326659634,1715206236889,-2142.48428039,0.00012999,2]
[326659635,1715206236900,-813.06510203,0.00012999,2]
[326659636,1715206236912,-3649.70912852,0.00012999,2]
[326659637,1715206236929,-11525.58191322,0.00012999,2]
[326659638,1715206236947,-457.41762964,0.00012999,2]
[326659639,1715206236960,-924.6115511,0.00012999,2]
[326659640,1715206236972,-106006.89050709,0.00012999,2]
[326659641,1715206236982,-499.99,0.00012999,2]
[326659642,1715206236992,-951997.42830047,0.00013,2]
[326659643,1715206237005,-31420.96678108,0.00013,2]
[326659644,1715206237016,-21584.95682334,0.00013,2]
[326659645,1715206237027,-50044.26308057,0.00013,2]
[326659646,1715206237039,-5902.51031461,0.00013,2]
[326659647,1715206237051,-833.80448237,0.00013,2]
[326659648,1715206237062,-1627.23699014,0.00013,2]
[326659649,1715206237073,-376.2556118,0.00013,2]
[326659650,1715206237086,-308.68743525,0.00013,2]
[326659651,1715206237097,-860.35582076,0.00013,2]
[326659652,1715206237109,-4002.19079221,0.00013,2]
[326659653,1715206237122,-2335.98145631,0.00013,2]
[326659654,1715206237133,-607.31474073,0.00013,2]
[326659655,1715206237145,-10464.03591591,0.00013,2]
[326659656,1715206237156,-4830.43984845,0.00013,2]
[326659657,1715206237167,-6018.32790803,0.00013,2]
[326659658,1715206237390,-904.96532417,0.00013,2]
[326659659,1715206237402,-357.46371413,0.00013,2]
[326659660,1715206237413,-165829.94164815,0.00013,2]
[326659661,1715206237426,-3424.9510989,0.00013,2]